[Event "20th Delhi GM Open 2023"]
[Site "New Delhi"]
[Date "2023.03.26"]
[Round "5.7"]
[White "Nithin Babu"]
[Black "Krasenkow, Michal"]
[Result "0-1"]
[ECO "A41"]
[WhiteElo "2061"]
[BlackElo "2527"]
[Annotator "TA"]
[PlyCount "106"]
[EventDate "2023.03.23"]
[EventType "swiss"]
[EventCountry "IND"]
[SourceTitle "playchess.com"]
[Source "ChessBase"]
[SourceQuality "1"]
[TimeControl "5400+30"]

{[%evp 13,106,95,81,52,90,84,83,83,97,84,95,96,105,77,57,0,-15,0,-21,-37,-22,-49,-6,-9,0,-152,-89,-79,-97,-190,-191,-180,-179,-216,-214,-532,-484,-575,-593,-560,-555,-549,-559,-743,-774,-715,-681,-691,-662,-637,-618,-725,-691,-782,-772,-797,-794,-824,-827,-966,-941,-961,-962,-901,-919,-29984,-6431,-12841,-12841,-12841,-12841,-12842,-12842,-12842,-12842,-12844,-12843,-12847,-12848,-29978,-12842,-12842,-12843,-12843,-12842,-29990,-12845,-29991,-29992,-29994,-29995,-29995,-29993,-29996,-870]} 1. e4 {[%emt 0:00:03]} d6 {[%emt 0:00:05]} 2. d4 {[%emt 0:00:06]} Nf6 {[%emt 0:00:04]} 3. Nc3 {[%emt 0:00:05]} c6 {[%emt 0:00:03]} 4. Nf3 {[%emt 0:00:41]} Bg4 {[%emt 0:00:05]} 5. h3 {[%emt 0:00:26]} Bh5 {[%emt 0:00:10]} 6. Qe2 {[%emt 0:00:56]} e6 {[%emt 0:00:18]} 7. g4 {[%emt 0:01:05]} Bg6 {[%emt 0:00:01]} 8. d5 {[%emt 0:01:29] A41: 1 d4 d6: Tartakower System and Modern Defence.} cxd5 {[%emt 0:01:46]} 9. exd5 {[%emt 0:00:14]} e5 {[%emt 0:00:04] [#]} 10. Nh4 $146 {[%emt 0:01:57] White is better.} ({Predecessor:} 10. h4 Nxg4 11. Nd4 Nf6 12. Bh3 Bh5 13. Qb5+ Nbd7 14. Qxb7 Rb8 15. Qxa7 exd4 16. Bg5 {0-1 Roberson,P (2437)-Pakleza,Z (2501) Titled Tuesday intern op 28th Sept blitz 2021 (6)}) 10... Be7 {[%emt 0:01:21][%cal Of6d5]} 11. Nxg6 {[%emt 0:03:12]} hxg6 {[%emt 0:00:05]} 12. Be3 {[%emt 0:02:05]} Nbd7 {[%emt 0:00:12]} 13. Bg2 {[%emt 0:03:29]} a6 {[%emt 0:05:47]} 14. O-O {[%emt 0:05:15]} ({White should try} 14. O-O-O $14) 14... Rc8 $11 {[%emt 0:01:47]} 15. f4 {[%emt 0:03:32]} exf4 {[%emt 0:01:31]} 16. Bxf4 {[%emt 0:02:08]} O-O {[%emt 0:02:58]} (16... Ne5 {with more complications.} 17. Bxe5 dxe5 18. Qxe5 O-O) 17. Kh1 {[%emt 0:03:33]} Re8 {[%emt 0:05:37]} 18. Qf3 {[%emt 0:06:01]} Bf8 {[%emt 0:04:23]} 19. h4 $2 {[%emt 0:14:05]} ({White should play} 19. Qg3 $11) 19... Qb6 {[%emt 0:02:35]} (19... Ne5 $142 20. Bxe5 dxe5) 20. Rab1 $17 {[%emt 0:14:20]} Ne5 {[%emt 0:11:34][%cal Bd7e5,Be5g4,Bg4e3][%mdl 32] Black is more active.} 21. Qg3 {[%emt 0:18:58]} (21. Bxe5 $17 Rxe5 22. Qf4) 21... Nexg4 $19 {[%emt 0:05:23]} ({Inferior is} 21... Nfxg4 22. Bh3 Nf6 23. Bxc8 Rxc8 24. Be3 $11) 22. Bh3 {[%emt 0:02:40] [#]} Ne3 {[%emt 0:00:10] Excellent horsemanship.} 23. Qg1 {[%emt 0:10:21]} (23. Qf2 Rc4) 23... Rc4 {[%emt 0:02:14] aiming for ...Qc5.} 24. Rbe1 $2 {[%emt 0:03:34]} (24. Rf3 {is more resistant.} Nexd5 25. Qxb6 Nxb6 26. Bf1) 24... Qxb2 {[%emt 0:00:37]} ({Stronger than} 24... Nexd5 25. Rxe8 Qxg1+ 26. Rxg1 $11) 25. Nd1 {[%emt 0:01:07]} Nxd1 {[%emt 0:00:18]} ({Weaker is} 25... Qxc2 26. Nxe3 Qe4+ 27. Bg2 Qxf4 28. Rxf4 Rxf4 29. Qh2 $16) 26. Rxd1 {[%emt 0:00:41]} Qxc2 {[%emt 0:01:05] [#] ...Nh5 is the strong threat.} 27. Rc1 {[%emt 0:01:06]} Qxa2 {[%emt 0:00:22]} 28. Bg3 {[%emt 0:00:45]} Rxc1 {[%emt 0:00:31]} 29. Rxc1 {[%emt 0:00:02]} Qxd5+ {[%emt 0:00:10]} 30. Bg2 {[%emt 0:00:18]} Ne4 {[%emt 0:00:06]} 31. Qe3 {[%emt 0:00:51]} f5 {[%emt 0:01:21]} 32. Bh2 {[%emt 0:00:37]} Be7 {[%emt 0:00:23]} 33. h5 {[%emt 0:01:11]} gxh5 {[%emt 0:00:26]} 34. Qf3 {[%emt 0:00:00]} g6 {[%emt 0:00:57]} 35. Bf4 {[%emt 0:00:20]} Bf6 {[%emt 0:00:41]} 36. Rg1 {[%emt 0:00:32]} Be5 {[%emt 0:01:52]} 37. Rc1 {[%emt 0:00:41]} Bxf4 {[%emt 0:00:37]} 38. Qxf4 {[%emt 0:00:01]} Qe5 {[%emt 0:00:56]} 39. Qh6 {[%emt 0:00:21]} Ng3+ {[%emt 0:01:46]} (39... Nf2+ $142 40. Kg1 Ng4 41. Qg5 Kf8 42. Qd2 Qh2+ 43. Kf1 Ne3+ 44. Qxe3 Rxe3 45. Rc8+ Kg7 46. Rc7+ Kh6 47. Rc2 Qe5 48. Bf3 Rxf3+ 49. Rf2 Rh3 50. Rg2 Qe3 51. Rc2 Rh1+ 52. Kg2 Rg1+ 53. Kh2 Qg3#) 40. Kh2 {[%emt 0:00:36]} Ne2+ {[%emt 0:00:19]} 41. Kh1 {[%emt 0:00:09]} Nxc1 {[%emt 0:00:24]} 42. Qxg6+ {[%emt 0:00:09]} Kf8 {[%emt 0:00:01]} 43. Qh6+ {[%emt 0:00:24]} Ke7 {[%emt 0:00:03]} 44. Qxc1 {[%emt 0:00:23][%mdl 4096] Endgame KQR-KQB} Rg8 {[%emt 0:00:34]} 45. Qc7+ {[%emt 0:01:10]} Kf6 {[%emt 0:00:04] ( -> ...Qe1+)} 46. Qc1 {[%emt 0:00:37] Inhibits Qe1+.} Qg3 {[%emt 0:00:54]} (46... Rg4 $142 47. Qf1 Rh4+ 48. Bh3 b5 49. Qf3 b4 50. Kg1 Rc4 51. Kh1 b3 52. Qf2 Rc1+ 53. Bf1 Rc2 54. Kg1 Rxf2 55. Kxf2 Qd4+ 56. Kg3 b2 57. Kh3 b1=Q 58. Kg2 Qg4+ 59. Kh2 Qf4+ 60. Kh3 Qbxf1#) 47. Qb2+ {[%emt 0:00:05]} Kg6 {[%emt 0:01:33]} 48. Bd5 {[%emt 0:01:09]} Qe1+ {[%emt 0:00:22]} 49. Kg2 {[%emt 0:00:33]} Rg7 {[%emt 0:00:11]} (49... Re8 $142 50. Bc4 Qe4+ 51. Kg1 Qxc4 52. Qd2 Kh7 53. Qg5 Rg8 54. Qxg8+ Kxg8 55. Kf2 Qe4 56. Kg3 h4+ 57. Kf2 h3 58. Kf1 Qg2+ 59. Ke1 h2 60. Kd1 h1=Q#) 50. Kh3 {[%emt 0:00:39]} Kh7 {[%emt 0:00:22][%csl Gg7][%cal Re1g3] Black mates.} 51. Qb3 {[%emt 0:00:44]} Qf1+ {[%emt 0:00:15]} 52. Kh2 {[%emt 0:00:19]} Qg1+ {[%emt 0:00:34]} 53. Kh3 {[%emt 0:00:02]} Qg4+ {[%emt 0:00:54] Weighted Error Value: White=0.63/Black=0.09 (flawless)} (53... h4 $142 54. Bg8+ Kh8 55. Qf3 Rg3+ 56. Kxh4 Qh2#) 0-1

[Event "20th Delhi GM Open 2023"]
[Site "New Delhi"]
[Date "2023.03.26"]
[Round "5.8"]
[White "Paichadze, Luka"]
[Black "Deshmukh, Anup"]
[Result "1-0"]
[ECO "C26"]
[WhiteElo "2515"]
[BlackElo "2129"]
[Annotator "TA"]
[PlyCount "53"]
[EventDate "2023.03.23"]
[EventType "swiss"]
[EventCountry "IND"]
[SourceTitle "playchess.com"]
[Source "ChessBase"]
[SourceQuality "1"]
[TimeControl "5400+30"]

{[%evp 9,53,32,24,32,21,31,37,41,62,68,56,60,85,94,133,106,123,93,88,83,132,119,126,125,128,119,129,136,289,209,375,402,384,393,386,372,659,637,647,640,675,671,2013,1906,29997,457]} 1. e4 {[%emt 0:00:03]} e5 {[%emt 0:00:34]} 2. Nc3 {[%emt 0:01:42]} Nf6 {[%emt 0:03:26]} 3. g3 {[%emt 0:00:06]} d5 {[%emt 0:01:12]} 4. exd5 {[%emt 0:00:07]} Bc5 {[%emt 0:02:56]} 5. Bg2 {[%emt 0:01:11]} c6 {[%emt 0:03:43]} 6. dxc6 {[%emt 0:06:18] C26: Vienna Game: 2...Nf6, sidelines .} Nxc6 {[%emt 0:00:13]} 7. Nge2 {[%emt 0:01:30]} Bg4 {[%emt 0:07:05]} 8. h3 {[%emt 0:02:17] White is slightly better.} Bh5 {[%emt 0:02:35] [#]} 9. g4 $146 {[%emt 0:04:29]} ({Predecessor:} 9. d3 O-O 10. O-O Rc8 11. Bg5 h6 12. Bxf6 gxf6 13. g4 Bg6 14. Ng3 Kg7 15. Be4 {1-0 Lanin,B (2096)-Bramburg,B (2272) RUS-ch qf 11-3 email 2011}) 9... Bg6 {[%emt 0:02:22]} 10. d3 {[%emt 0:05:17]} h5 {[%emt 0:04:03]} 11. g5 $36 {[%emt 0:01:52][%mdl 2048] Keeping Black busy.} Nh7 {[%emt 0:00:31]} 12. h4 {[%emt 0:00:10]} O-O {[%emt 0:05:10]} 13. Ne4 {[%emt 0:09:26]} Bb6 {[%emt 0:06:07]} 14. N2g3 {[%emt 0:12:09]} Rc8 {[%emt 0:05:17]} ({Black should play} 14... f5 15. Nc3 (15. gxf6 Nxf6 16. Bg5 Nxe4 $14) 15... Rc8) 15. c3 $16 {[%emt 0:06:11]} ({Inferior is} 15. Nxh5 Nd4 16. O-O (16. c3 Bxh5 {[%mdl 64] Deflection} 17. Qxh5 Nc2+ {[%mdl 64] Discovered Attack, Double Attack} 18. Ke2 Nxa1 $17) 16... Rxc2 $11) 15... f5 {[%emt 0:06:45]} 16. gxf6 {[%emt 0:00:18]} Nxf6 {[%emt 0:00:14]} 17. Bg5 {[%emt 0:01:06] And now Bxf6 would win.} Nxe4 {[%emt 0:08:30][%mdl 64] [#] Remove Defender} 18. Nxe4 {[%emt 0:01:36]} (18. Bxd8 $2 {perishes.} Bxf2+ 19. Ke2 Nxg3+ 20. Kd2 Rcxd8 $19) 18... Bxe4 $2 {[%emt 0:14:30] A mistake that costs the game.} (18... Qe8 $16 {was necessary.} 19. O-O Rc7) 19. Bxe4 {[%emt 0:12:47]} Bxf2+ $2 {[%emt 0:01:53]} (19... Qe8 {keeps fighting.} 20. Be3 Nd8) 20. Kd2 $18 {[%emt 0:00:04]} Qe8 {[%emt 0:04:44]} 21. Rf1 {[%emt 0:00:39]} Rc7 {[%emt 0:08:31]} 22. Qe2 {[%emt 0:01:07]} Qf7 {[%emt 0:02:06]} (22... Bc5 23. Bd5+ Kh8 24. Rxf8+ Bxf8) 23. Kd1 {[%emt 0:00:35]} Rd7 {[%emt 0:03:52]} 24. Rc1 {[%emt 0:02:05]} Qc4 {[%emt 0:03:42]} 25. b3 {[%emt 0:00:23]} ({Weaker is} 25. Rxf2 Rxf2 $15) 25... Qc5 {[%emt 0:00:25]} 26. Qxh5 {[%emt 0:01:14] [#] Intending Bh7+ and mate.} Rd6 {[%emt 0:02:26]} 27. Bh7+ {[%emt 0:00:12] A cool game by Paichadze.   Weighted Error Value: White=0.07 (flawless) /Black=0.71} 1-0

[Event "20th Delhi GM Open 2023"]
[Site "New Delhi"]
[Date "2023.03.26"]
[Round "5.9"]
[White "Neelash Saha"]
[Black "Kulkarni, Vinayak"]
[Result "1-0"]
[ECO "D02"]
[WhiteElo "2444"]
[BlackElo "2011"]
[Annotator "TA"]
[PlyCount "59"]
[EventDate "2023.03.23"]
[EventType "swiss"]
[EventCountry "IND"]
[SourceTitle "playchess.com"]
[Source "ChessBase"]
[SourceQuality "1"]
[TimeControl "5400+30"]

{[%evp 18,59,44,32,25,29,44,29,74,76,96,100,124,96,125,81,150,156,138,135,162,162,165,159,169,162,155,159,188,182,166,160,178,186,211,207,200,206,219,209,410,413,490,494]} 1. d4 {[%emt 0:00:07]} d5 {[%emt 0:00:17]} 2. Bf4 {[%emt 0:00:12]} Nf6 {[%emt 0:00:22]} 3. e3 {[%emt 0:00:06]} e6 {[%emt 0:00:30]} 4. Nd2 {[%emt 0:00:17]} Bd6 {[%emt 0:01:12]} 5. Bg3 {[%emt 0:00:07]} O-O {[%emt 0:00:49]} 6. Bd3 {[%emt 0:00:16]} c5 {[%emt 0:03:08]} 7. c3 {[%emt 0:00:05]} Nc6 {[%emt 0:00:36]} 8. Ngf3 {[%emt 0:00:13]} Re8 {[%emt 0:09:20]} 9. Ne5 {[%emt 0:00:58]} Bxe5 {[%emt 0:03:07]} 10. dxe5 {[%emt 0:00:06]} Nd7 {[%emt 0:00:08] D02: 1 d4 d5 2 Nf3 sidelines, including 2...Nf6 3 g3 and 2...Nf6 3 Bf4.} 11. Nf3 {[%emt 0:00:40]} ({Much worse is} 11. Qh5 g6 12. Qe2 Ndxe5 $15) 11... Nf8 {[%emt 0:03:15]} 12. h4 {[%emt 0:00:16]} f5 {[%emt 0:06:42] White has an edge.} 13. exf6 {[%emt 0:02:24] [#]} Qxf6 $146 {[%emt 0:04:51]} ({Predecessor:} 13... gxf6 14. e4 Ne7 15. O-O Bd7 16. Re1 Bc6 17. Qe2 Qb6 18. h5 dxe4 19. Bxe4 Bxe4 20. Qxe4 {1-0 Lagopatis,N (2123)-Michos,T (2241) GRE-chT 28th 1999}) 14. Bc2 {[%emt 0:00:04]} Qd8 {[%emt 0:11:31]} 15. e4 {[%emt 0:02:33] White is more active.} d4 {[%emt 0:08:12]} 16. cxd4 {[%emt 0:01:04]} Qa5+ {[%emt 0:07:53]} (16... Nxd4 $142 17. O-O b6) 17. Qd2 $16 {[%emt 0:01:11]} Qxd2+ {[%emt 0:01:45]} 18. Kxd2 {[%emt 0:00:03]} Nxd4 {[%emt 0:03:14]} 19. Nxd4 {[%emt 0:00:24]} Rd8 {[%emt 0:01:22] [#]} 20. Rhd1 $1 {[%emt 0:00:21]} Rxd4+ {[%emt 0:03:25]} 21. Ke3 {[%emt 0:00:10]} Rxd1 {[%emt 0:02:16]} 22. Rxd1 {[%emt 0:00:05] Black must now prevent Ba4.} b6 {[%emt 0:00:40]} 23. Bb3 {[%emt 0:04:03]} Ba6 {[%emt 0:00:53]} 24. h5 {[%emt 0:02:44]} Kf7 {[%emt 0:03:31]} 25. Be5 {[%emt 0:01:55]} g6 {[%emt 0:03:54]} 26. hxg6+ {[%emt 0:01:30]} hxg6 {[%emt 0:00:24]} 27. f4 {[%emt 0:00:15]} Rc8 {[%emt 0:05:32]} 28. g4 {[%emt 0:02:29]} b5 $2 {[%emt 0:03:27]} (28... Bb5 29. Rh1 Rd8) 29. Rd6 $18 {[%emt 0:00:18]} Bb7 {[%emt 0:01:09] [#]} 30. Bxe6+ $1 {[%emt 0:00:06][%mdl 576] Deflection. Black did not feel at home in the position after the opening.   Weighted Error Value: White=0.06 (flawless) /Black=0.33} 1-0

[Event "20th Delhi GM Open 2023"]
[Site "New Delhi"]
[Date "2023.03.26"]
[Round "6.1"]
[White "Stupak, Kirill"]
[Black "Aravindh, Chithambaram VR."]
[Result "0-1"]
[ECO "D74"]
[WhiteElo "2413"]
[BlackElo "2607"]
[Annotator "TA"]
[PlyCount "108"]
[EventDate "2023.03.23"]
[EventType "swiss"]
[EventCountry "IND"]
[SourceTitle "playchess.com"]
[Source "ChessBase"]
[SourceQuality "1"]
[TimeControl "5400+30"]

{[%evp 14,108,9,9,12,8,28,0,0,0,0,0,2,2,6,3,6,0,0,-15,-7,-7,-4,-7,0,0,0,0,0,0,0,0,0,-14,-5,-36,0,0,0,0,0,0,0,0,0,0,0,0,0,-8,-8,-26,-8,-8,0,-18,0,-19,-16,-16,-12,-9,0,-16,0,-16,0,-8,0,-34,0,-33,-32,-17,-25,-121,-94,-100,-112,-152,-98,-139,-137,-158,-42,-40,-52,-47,-31,-292,-31,-33,-22,-20,-8,-734,-722]} 1. d4 {[%emt 0:00:02]} Nf6 {[%emt 0:00:14]} 2. c4 {[%emt 0:00:08]} g6 {[%emt 0:00:14]} 3. Nc3 {[%emt 0:00:08]} Bg7 {[%emt 0:00:10]} 4. g3 {[%emt 0:00:49]} O-O {[%emt 0:04:00]} 5. Bg2 {[%emt 0:00:04]} Nc6 {[%emt 0:00:06]} 6. Nf3 {[%emt 0:06:45][%cal Bg1f3,Bf3d2,Bd2e4,Be4c3][%mdl 32]} d5 $1 {[%emt 0:00:12] The main line 6...d5 scores better than 6...d6.} 7. cxd5 {[%emt 0:00:02]} Nxd5 {[%emt 0:00:06]} 8. O-O {[%emt 0:00:03]} e5 {[%emt 0:00:10][%cal Re5d4] D74: Fianchetto Grünfeld: Main Line (5 Nf3 0-0 6 cxd5 Nxd5 7 0-0).} 9. Nxd5 {[%emt 0:00:02]} e4 {[%emt 0:00:07]} 10. Nd2 {[%emt 0:00:23][%cal Od2e4]} Qxd5 {[%emt 0:00:08] The position is equal.} 11. Nxe4 {[%emt 0:00:04][%cal Oe4f6] And now Nf6+! would win.} Qxd4 {[%emt 0:00:14]} 12. Nc3 {[%emt 0:00:05]} Be6 {[%emt 0:17:08]} 13. Bxc6 {[%emt 0:07:41]} bxc6 {[%emt 0:02:32]} 14. Qxd4 {[%emt 0:00:19]} Bxd4 {[%emt 0:00:05]} 15. Rd1 {[%emt 0:00:03] [#]} c5 $146 {[%emt 0:05:27]} ({Predecessor:} 15... Rfd8 16. Bf4 Bb6 {½-½ Schild,R (2155)-Campbell,E (2092) SCO MT-Pyrich S11 email 2018}) 16. Be3 {[%emt 0:11:46]} (16. Bf4 $5) 16... Bxe3 {[%emt 0:05:51]} 17. fxe3 {[%emt 0:00:03]} Rab8 {[%emt 0:01:17]} 18. Rd2 {[%emt 0:01:50]} Rb4 {[%emt 0:00:13]} 19. Rc1 Rfb8 {[%emt 0:02:49]} 20. Rcc2 {[%emt 0:13:17]} Kg7 {[%emt 0:04:44]} 21. a3 {[%emt 0:04:54]} Rc4 {[%emt 0:12:07]} 22. e4 {[%emt 0:01:10]} Rd4 {[%emt 0:09:08]} 23. Nb1 {[%emt 0:08:15]} Rd6 {[%emt 0:08:37]} 24. e5 {[%emt 0:05:05]} Rdd8 {[%emt 0:32:44]} 25. Rxd8 {[%emt 0:18:41]} Rxd8 $11 {[%emt 0:00:00][%mdl 4096] Endgame KRB-KRN} 26. Rd2 {[%emt 0:00:06] Prevents Rd1+} Rb8 {[%emt 0:00:00]} 27. Nc3 {[%emt 0:01:32]} c4 {[%emt 0:00:00]} 28. Kf2 {[%emt 0:00:56]} g5 {[%emt 0:00:00]} 29. e4 {[%emt 0:02:12]} f6 {[%emt 0:00:00]} 30. exf6+ {[%emt 0:02:13]} Kxf6 {[%emt 0:00:00]} 31. Ke3 {[%emt 0:00:29]} Ke5 {[%emt 0:00:00]} 32. Ne2 {[%emt 0:00:39]} Rb3+ {[%emt 0:00:00]} 33. Nc3 {[%emt 0:00:01]} Rb8 {[%emt 0:00:00]} 34. Ne2 {[%emt 0:00:04]} Rb3+ {[%emt 0:00:00]} 35. Nc3 {[%emt 0:00:02]} h6 {[%emt 0:00:00]} 36. Rf2 {[%emt 0:03:25]} Rb8 {[%emt 0:00:00]} 37. Na4 {[%emt 0:03:50]} Rb3+ {[%emt 0:00:00]} 38. Nc3 {[%emt 0:00:33]} c6 {[%emt 0:01:07]} 39. Rd2 {[%emt 0:00:36]} Rb8 {[%emt 0:00:00]} 40. Na4 {[%emt 0:00:43]} Rb3+ {[%emt 0:00:00]} 41. Nc3 {[%emt 0:00:01]} Bg4 {[%emt 0:00:00]} 42. h4 {[%emt 0:05:34]} gxh4 {[%emt 0:00:00]} 43. gxh4 {[%emt 0:00:03]} Rb8 {[%emt 0:00:00]} 44. Rd4 {[%emt 0:04:30]} (44. Rf2 $11 {keeps the balance.}) 44... Be6 $1 $17 {[%emt 0:00:00]} ({Reject} 44... Rxb2 $6 45. Rxc4 Rh2 46. Rxc6 $11) 45. Rd2 {[%emt 0:00:40] [#]} Rg8 $1 {[%emt 0:00:00] Dodges Rg2} 46. Kf3 {[%emt 0:01:46]} Rg4 {[%emt 0:00:59]} (46... h5 $142 47. a4 a5) 47. Rh2 {[%emt 0:00:08]} h5 {[%emt 0:00:13]} 48. Rg2 {[%emt 0:00:52]} Rxh4 {[%emt 0:01:25] Black is more active.} (48... Rxg2 $17 49. Kxg2 Kf4) 49. Rg5+ $15 {[%emt 0:00:02]} Kf6 {[%emt 0:00:49]} 50. Rc5 {[%emt 0:01:54]} Rh2 {[%emt 0:00:05]} (50... Bd7 $5 {[%cal Rh4h2]}) 51. Kf4 $2 {[%emt 0:00:40][%mdl 8192] [#]} (51. Rxc6 $15 Ke5 52. Rc5+ Kd4 53. Rb5 Bg4+ 54. Kf4 Rf2+ 55. Kg3) 51... Rf2+ $2 {[%emt 0:01:35]} ({Stronger than} 51... Rxb2 52. Rxc6 Rf2+ 53. Ke3 $11) ({Better is} 51... h4 $1 $19 {[%cal Rh4h3] aiming for ...h3.} 52. e5+ Kf7 53. Rxc6 Rf2+ 54. Ke3 Rxb2) 52. Ke3 {[%emt 0:00:07]} Rxb2 {[%emt 0:00:04]} 53. Rxh5 {[%emt 0:00:12]} Rc2 {[%emt 0:00:24]} 54. Kd4 {[%emt 0:00:51][%mdl 8192] [#]} (54. Rh6+ $11 Ke5 55. Rh5+ Kd6 56. e5+ Kc5 57. Ne4+ Kb6 58. Rh1 (58. Rh6 Bd5 $17)) 54... c5+ $1 {[%emt 0:00:04][%mdl 512] Weighted Error Value: White=0.33/Black=0.20 (precise)} 0-1

[Event "20th Delhi GM Open 2023"]
[Site "New Delhi"]
[Date "2023.03.26"]
[Round "6.2"]
[White "Mchedlishvili, Mikheil"]
[Black "Paichadze, Luka"]
[Result "1/2-1/2"]
[ECO "E08"]
[WhiteElo "2569"]
[BlackElo "2515"]
[Annotator "TA"]
[PlyCount "26"]
[EventDate "2023.03.23"]
[EventType "swiss"]
[EventCountry "IND"]
[SourceTitle "playchess.com"]
[Source "ChessBase"]
[SourceQuality "1"]
[TimeControl "5400+30"]

{[%evp 25,26,0,0]} 1. d4 {[%emt 0:00:04]} Nf6 {[%emt 0:00:05]} 2. c4 {[%emt 0:00:08]} e6 {[%emt 0:00:06]} 3. g3 {[%emt 0:00:17]} Bb4+ {[%emt 0:00:06]} 4. Bd2 {[%emt 0:00:16]} Be7 {[%emt 0:00:08]} 5. Bg2 {[%emt 0:00:17]} d5 {[%emt 0:00:12]} 6. Nf3 {[%emt 0:00:26]} O-O {[%emt 0:00:11]} 7. Qc2 {[%emt 0:00:17]} c6 {[%emt 0:00:10]} 8. O-O {[%emt 0:00:23]} Nbd7 {[%emt 0:00:07]} 9. Bf4 {[%emt 0:00:21]} Nh5 {[%emt 0:00:11]} 10. Bc1 {[%emt 0:00:21]} Nhf6 {[%emt 0:00:08]} 11. Bf4 {[%emt 0:00:17]} Nh5 {[%emt 0:00:06]} 12. Bc1 {[%emt 0:00:14]} Nhf6 {[%emt 0:00:06] [#]} 13. Bf4 $146 {[%emt 0:00:16]} ({Predecessor:} 13. Nbd2 b6 14. e4 Nxe4 15. Nxe4 dxe4 16. Qxe4 Bb7 17. Rd1 Re8 18. Bf4 Qc8 19. Qc2 c5 20. d5 exd5 21. cxd5 Bf6 22. h4 h6 23. Nd2 Bd4 24. Nc4 Nf6 25. Nd6 Qd7 26. Nxb7 Qxb7 {½-½ Ter Sahakyan,S (2585)-Andreikin,D (2735) Wch Blitz Almaty 2022 (2)}) 13... Nh5 $1 {[%emt 0:00:18][%mdl 4] 13...Nh5 is setting a new trend.} 1/2-1/2